[Event "Lueneburg Open-B 2019"]
[Site "Lueneburg"]
[Date "2019.08.10"]
[Round "8.4"]
[White "Fomenkov, Alexander"]
[Black "Groth, Matthias"]
[Result "1-0"]
[ECO "B22"]
[WhiteElo "1779"]
[BlackElo "1737"]
[Annotator "NA"]
[PlyCount "105"]
[EventDate "2019.08.03"]
[EventType "swiss"]
[EventCountry "GER"]
[SourceTitle "playchess.com"]
[Source "ChessBase"]
[SourceQuality "1"]
[TimeControl "40/5400+30:1800+30"]

1. e4 {[%emt 0:00:00]} c5 {[%emt 0:00:00]} 2. d4 {[%emt 0:00:00]} cxd4 {[%emt 0:00:00]} 3. c3 {[%emt 0:00:00]} Nc6 {[%emt 0:02:45]} 4. Nf3 {[%emt 0:00:11]} d5 {[%emt 0:05:06]} 5. exd5 {[%emt 0:01:35]} Qxd5 {[%emt 0:00:17]} 6. cxd4 {[%emt 0:00:36]} Bg4 {[%emt 0:00:27]} 7. Nc3 {[%emt 0:00:41]} Qa5 {[%emt 0:04:04]} 8. Bb5 {[%emt 0:06:00]} e6 {[%emt 0:03:43]} 9. O-O {[%emt 0:05:47]} Nf6 {[%emt 0:01:41]} 10. Qd3 {[%emt 0:02:21]} Bf5 {[%emt 0:03:49]} 11. Qe2 {[%emt 0:02:15]} a6 {[%emt 0:02:42]} 12. Bxc6+ {[%emt 0:03:28]} bxc6 {[%emt 0:00:12]} 13. Ne5 {[%emt 0:00:17]} Qc7 {[%emt 0:02:29]} 14. Qc4 {[%emt 0:08:22]} c5 {[%emt 0:03:16]} 15. Qa4+ {[%emt 0:06:34]} Nd7 {[%emt 0:04:13]} 16. Rd1 {[%emt 0:10:49]} c4 {[%emt 0:25:47]} 17. Nxc4 {[%emt 0:06:04]} Bd6 {[%emt 0:04:51]} 18. Ne5 {[%emt 0:12:58]} Ra7 {[%emt 0:03:04]} 19. Nxd7 {[%emt 0:06:36]} Qxd7 {[%emt 0:00:02]} 20. Qxd7+ {[%emt 0:02:44]} Rxd7 {[%emt 0:00:07]} 21. Be3 {[%emt 0:02:09]} Ke7 {[%emt 0:00:46]} 22. f3 {[%emt 0:00:56]} Rhd8 {[%emt 0:00:36]} 23. Rac1 {[%emt 0:05:02]} Bb4 {[%emt 0:03:18]} 24. g4 {[%emt 0:01:50]} Bg6 {[%emt 0:00:41]} 25. Kf2 {[%emt 0:00:56]} Bxc3 {[%emt 0:05:13]} 26. bxc3 {[%emt 0:00:26]} Rc7 {[%emt 0:06:16]} 27. c4 {[%emt 0:00:40]} Rdc8 {[%emt 0:01:42]} 28. c5 {[%emt 0:00:41]} Kd7 {[%emt 0:02:07]} 29. Bf4 {[%emt 0:02:31]} Ra7 {[%emt 0:01:09]} 30. Rd2 {[%emt 0:00:40]} Kc6 {[%emt 0:00:57]} 31. Rc3 {[%emt 0:01:08]} Rb7 {[%emt 0:01:15]} 32. Ra3 {[%emt 0:00:42]} Ra8 {[%emt 0:00:18]} 33. Ke3 {[%emt 0:01:39]} a5 {[%emt 0:03:30]} 34. h4 {[%emt 0:02:18]} h6 {[%emt 0:01:59]} 35. h5 {[%emt 0:00:18]} Bh7 {[%emt 0:00:01]} 36. g5 {[%emt 0:00:26]} hxg5 {[%emt 0:02:05]} 37. Bxg5 {[%emt 0:00:08]} Rb1 {[%emt 0:02:15]} 38. Rh2 {[%emt 0:02:30]} Rf1 {[%emt 0:01:49]} 39. Be7 {[%emt 0:00:35]} Re1+ {[%emt 0:00:55]} 40. Kf4 {[%emt 0:00:55]} Rd1 {[%emt 0:01:38]} 41. Ke3 {[%emt 0:31:22]} Re1+ {[%emt 0:05:53]} 42. Kf4 {[%emt 0:00:00]} Rd1 {[%emt 0:00:13]} 43. Ke3 {[%emt 0:00:00]} Re1+ {[%emt 0:00:01]} 44. Re2 {[%emt 0:00:00]} Rh1 {[%emt 0:00:26]} 45. Rb2 {[%emt 0:00:00]} Ra6 {[%emt 0:06:14]} 46. Rab3 {[%emt 0:00:00]} Rxh5 {[%emt 0:05:43]} 47. Rb6+ {[%emt 0:00:00]} Rxb6 {[%emt 0:01:10]} 48. Rxb6+ {[%emt 0:00:00]} Kd5 {[%emt 0:00:41]} 49. c6 {[%emt 0:00:00]} e5 {[%emt 0:01:08]} 50. c7 {[%emt 0:00:00]} exd4+ {[%emt 0:01:23]} 51. Kf4 {[%emt 0:00:00]} Bf5 {[%emt 0:04:22]} 52. Rb5+ {[%emt 0:00:00]} Ke6 {[%emt 0:00:13]} 53. c8=Q+ {[%emt 0:11:20] Kd5} 1-0

[Event "Lueneburg Open-B 2019"]
[Site "Lueneburg"]
[Date "2019.08.10"]
[Round "8.5"]
[White "Seeber, Helmut"]
[Black "Cordsen, Heinrich"]
[Result "1/2-1/2"]
[ECO "C10"]
[WhiteElo "1580"]
[BlackElo "1685"]
[Annotator "NA"]
[PlyCount "39"]
[EventDate "2019.08.03"]
[EventType "swiss"]
[EventCountry "GER"]
[SourceTitle "playchess.com"]
[Source "ChessBase"]
[SourceQuality "1"]
[TimeControl "40/5400+30:1800+30"]

1. e4 {[%emt 0:00:00]} e6 {[%emt 0:00:00]} 2. d4 {[%emt 0:00:00]} d5 {[%emt 0:00:00]} 3. Nd2 {[%emt 0:00:03]} dxe4 {[%emt 0:00:34]} 4. Nxe4 {[%emt 0:00:01]} Bd7 {[%emt 0:02:10]} 5. Nf3 {[%emt 0:00:42]} Bc6 {[%emt 0:00:24]} 6. Bd3 {[%emt 0:00:10]} Nd7 {[%emt 0:00:23]} 7. O-O {[%emt 0:00:16]} Ngf6 {[%emt 0:01:00]} 8. Qe2 {[%emt 0:02:40]} Bxe4 {[%emt 0:03:46]} 9. Bxe4 {[%emt 0:00:20]} Nxe4 {[%emt 0:00:23]} 10. Qxe4 {[%emt 1:30:48]} c6 {[%emt 0:00:22]} 11. c3 {[%emt 0:00:00]} Nf6 {[%emt 0:01:51]} 12. Qc2 {[%emt 0:00:00]} Be7 {[%emt 0:01:37]} 13. Bf4 {[%emt 0:00:00]} Nd5 {[%emt 0:09:58]} 14. Bg3 {[%emt 0:00:00]} Bf6 {[%emt 0:01:45]} 15. Rfe1 {[%emt 0:00:00]} O-O {[%emt 0:01:07]} 16. Re2 {[%emt 0:00:00]} Ne7 {[%emt 0:12:57]} 17. Rae1 {[%emt 0:00:00]} Ng6 {[%emt 0:04:33]} 18. Ne5 {[%emt 0:00:00]} Nxe5 {[%emt 0:05:10]} 19. Bxe5 {[%emt 0:04:30]} Bxe5 {[%emt 0:03:59]} 20. Qd1 {[%emt 0:00:30]} 1/2-1/2

[Event "Lueneburg Open-B 2019"]
[Site "Lueneburg"]
[Date "2019.08.10"]
[Round "8.6"]
[White "Neumann, Lutz"]
[Black "Goldmann, David"]
[Result "1/2-1/2"]
[ECO "B40"]
[WhiteElo "1784"]
[BlackElo "1403"]
[Annotator "NA"]
[PlyCount "89"]
[EventDate "2019.08.03"]
[EventType "swiss"]
[EventCountry "GER"]
[SourceTitle "playchess.com"]
[Source "ChessBase"]
[SourceQuality "1"]
[TimeControl "40/5400+30:1800+30"]

1. e4 {[%emt 0:00:00]} c5 {[%emt 0:00:00]} 2. Nf3 {[%emt 0:00:00]} e6 {[%emt 0:00:00]} 3. d4 {[%emt 0:00:00]} cxd4 {[%emt 0:00:00]} 4. Nxd4 {[%emt 0:00:00]} Bc5 {[%emt 0:00:01]} 5. Nb3 {[%emt 0:00:00]} Bb6 {[%emt 0:00:07]} 6. Nc3 {[%emt 0:00:15]} Nc6 {[%emt 0:00:09]} 7. Bd3 {[%emt 0:01:59]} Nge7 {[%emt 0:00:13]} 8. O-O {[%emt 0:00:56]} O-O {[%emt 0:00:08]} 9. Bf4 {[%emt 0:02:05]} f5 {[%emt 0:00:29]} 10. Qd2 {[%emt 0:09:26]} fxe4 {[%emt 1:33:53]} 11. Nxe4 {[%emt 0:03:03]} d5 {[%emt 0:00:00]} 12. Nc3 {[%emt 0:05:53]} a6 {[%emt 0:00:00]} 13. Rae1 {[%emt 0:07:12]} Na5 {[%emt 0:00:00]} 14. Bg3 {[%emt 0:17:10]} Nxb3 {[%emt 0:00:00]} 15. axb3 {[%emt 0:00:10]} Ba5 {[%emt 0:00:00]} 16. Qg5 {[%emt 0:03:30]} h6 {[%emt 0:00:00]} 17. Qh4 {[%emt 0:04:51]} Nc6 {[%emt 0:00:00]} 18. Qxd8 {[%emt 0:01:44]} Rxd8 {[%emt 0:00:00]} 19. Re2 {[%emt 0:04:44]} Bd7 {[%emt 0:00:00]} 20. f4 {[%emt 0:06:34]} Nb4 {[%emt 0:00:00]} 21. Bg6 {[%emt 0:01:46]} Rf8 {[%emt 0:00:00]} 22. Rd1 {[%emt 0:05:44]} Bc7 {[%emt 0:06:00]} 23. f5 {[%emt 0:03:08]} Bb6+ {[%emt 0:00:00]} 24. Bf2 {[%emt 0:04:08]} Bxf2+ {[%emt 0:00:00]} 25. Rxf2 {[%emt 0:00:29]} Rf6 {[%emt 0:00:00]} 26. fxe6 {[%emt 0:01:32]} Rxg6 {[%emt 0:00:00]} 27. exd7 {[%emt 0:00:13]} Rd6 {[%emt 0:00:00]} 28. Rd4 {[%emt 0:02:10]} a5 {[%emt 0:00:00]} 29. Nb5 {[%emt 0:01:25]} Rxd7 {[%emt 0:00:00]} 30. c4 {[%emt 0:01:30]} Rad8 {[%emt 0:00:00]} 31. Rfd2 {[%emt 0:01:22]} Kf7 {[%emt 0:00:00]} 32. Nc3 {[%emt 0:01:23]} Na6 {[%emt 0:00:00]} 33. Nxd5 {[%emt 0:04:55]} Nc5 {[%emt 0:00:00]} 34. Rf4+ {[%emt 0:01:03]} Kg8 {[%emt 0:00:00]} 35. Rf3 {[%emt 0:00:54]} Kh7 {[%emt 0:00:00]} 36. Re2 {[%emt 0:01:35]} b5 {[%emt 0:00:00]} 37. Nc3 {[%emt 0:01:34]} bxc4 {[%emt 0:00:00]} 38. bxc4 {[%emt 0:00:22]} Rd4 {[%emt 0:00:00]} 39. Rf7 {[%emt 0:01:10]} Rxc4 {[%emt 0:00:00]} 40. Ra7 {[%emt 0:00:49]} Rb8 {[%emt 0:00:00]} 41. Rxa5 {[%emt 0:31:40]} Nd3 {[%emt 0:00:00]} 42. h3 {[%emt 0:00:00]} Nxb2 {[%emt 0:00:00]} 43. Rb5 {[%emt 0:00:00]} Rxb5 {[%emt 0:40:30]} 44. Nxb5 {[%emt 0:03:36]} Rc1+ {[%emt 0:00:30]} 45. Kh2 {[%emt 0:00:30]} 1/2-1/2

[Event "Lueneburg Open-B 2019"]
[Site "Lueneburg"]
[Date "2019.08.10"]
[Round "8.7"]
[White "Kolhoff, Manfred"]
[Black "Domschke, Stephan"]
[Result "1/2-1/2"]
[ECO "B22"]
[WhiteElo "1616"]
[BlackElo "1671"]
[Annotator "NA"]
[PlyCount "114"]
[EventDate "2019.08.03"]
[EventType "swiss"]
[EventCountry "GER"]
[SourceTitle "playchess.com"]
[Source "ChessBase"]
[SourceQuality "1"]
[TimeControl "40/5400+30:1800+30"]

1. e4 {[%emt 0:00:00]} d5 {[%emt 0:00:00]} 2. e5 {[%emt 0:00:08]} c5 {[%emt 0:00:00]} 3. c3 {[%emt 0:00:44]} Bf5 {[%emt 0:02:14]} 4. d4 {[%emt 0:01:33]} e6 {[%emt 0:00:52]} 5. Bd3 {[%emt 0:01:02]} Bxd3 {[%emt 0:01:48]} 6. Qxd3 {[%emt 0:00:08]} Nc6 {[%emt 0:00:42]} 7. Nf3 {[%emt 0:00:54]} Qb6 {[%emt 0:01:34]} 8. O-O {[%emt 0:00:46]} Nge7 {[%emt 0:00:19]} 9. Na3 {[%emt 0:02:45]} Nf5 {[%emt 0:03:12]} 10. Nc2 {[%emt 0:00:25]} Be7 {[%emt 0:01:50]} 11. Re1 {[%emt 0:09:05]} h6 {[%emt 0:05:17]} 12. Rb1 {[%emt 0:01:33]} O-O {[%emt 0:00:58]} 13. Be3 {[%emt 0:01:22]} cxd4 {[%emt 0:08:37]} 14. cxd4 {[%emt 0:00:09]} Nb4 {[%emt 0:04:31]} 15. Nxb4 {[%emt 0:01:25]} Bxb4 {[%emt 0:00:12]} 16. Rec1 {[%emt 0:00:13]} Rac8 {[%emt 0:01:10]} 17. a3 {[%emt 0:01:55]} Be7 {[%emt 0:04:55]} 18. b4 {[%emt 0:01:43]} a6 {[%emt 0:06:22]} 19. h3 {[%emt 0:02:19]} Nxe3 {[%emt 0:02:07]} 20. fxe3 {[%emt 0:00:20]} Rc6 {[%emt 0:05:45]} 21. Rc3 {[%emt 0:01:23]} Rfc8 {[%emt 0:03:09]} 22. Rbc1 {[%emt 0:00:25]} a5 {[%emt 0:01:12]} 23. Rxc6 {[%emt 0:01:11]} Rxc6 {[%emt 0:00:21]} 24. Rxc6 {[%emt 0:01:37]} Qxc6 {[%emt 0:00:34]} 25. Qd2 {[%emt 0:07:01]} axb4 {[%emt 0:00:22]} 26. axb4 {[%emt 0:00:48]} Qc4 {[%emt 0:01:52]} 27. Qb2 {[%emt 0:07:58]} Qxb4 {[%emt 0:04:29]} 28. Qc2 {[%emt 0:03:28]} Qc4 {[%emt 0:02:02]} 29. Qb2 {[%emt 0:02:13]} Bb4 {[%emt 0:00:42]} 30. Kf2 {[%emt 0:04:50]} b5 {[%emt 0:02:17]} 31. Qe2 {[%emt 0:12:30]} Qxe2+ {[%emt 0:04:40]} 32. Kxe2 {[%emt 0:00:05]} f6 {[%emt 0:00:34]} 33. Kd3 {[%emt 0:00:37]} Kf7 {[%emt 0:00:46]} 34. g4 {[%emt 0:01:07]} g6 {[%emt 0:04:52]} 35. exf6 {[%emt 0:00:39]} Bd6 {[%emt 0:01:02]} 36. e4 {[%emt 0:05:17]} dxe4+ {[%emt 0:00:22]} 37. Kxe4 {[%emt 0:00:08]} Kxf6 {[%emt 0:00:12]} 38. h4 {[%emt 0:02:00]} b4 {[%emt 0:02:14]} 39. g5+ {[%emt 0:00:24]} hxg5 {[%emt 0:01:02]} 40. hxg5+ {[%emt 0:00:03]} Ke7 {[%emt 0:00:56]} 41. Nd2 {[%emt 0:31:40]} Bg3 {[%emt 0:31:15]} 42. Nb3 {[%emt 0:01:13]} Kd6 {[%emt 0:01:42]} 43. Na5 {[%emt 0:02:35]} Bh4 {[%emt 0:03:23]} 44. Nc4+ {[%emt 0:03:25]} Kc6 {[%emt 0:09:16]} 45. Ke5 {[%emt 0:02:13]} Kd7 {[%emt 0:01:09]} 46. Kf6 {[%emt 0:00:18]} Bf2 {[%emt 0:00:33]} 47. Kxg6 {[%emt 0:03:54]} Bxd4 {[%emt 0:00:14]} 48. Nd2 {[%emt 0:02:25]} Kd6 {[%emt 0:01:17]} 49. Kf7 {[%emt 0:06:07]} Ke5 {[%emt 0:00:00]} 50. Nf3+ {[%emt 0:00:00]} Ke4 {[%emt 0:00:00]} 51. Nxd4 {[%emt 0:00:00]} Kxd4 {[%emt 0:00:00]} 52. g6 {[%emt 0:00:00]} b3 {[%emt 0:00:00]} 53. g7 {[%emt 0:00:00]} b2 {[%emt 0:00:00]} 54. g8=Q {[%emt 0:00:00]} b1=Q {[%emt 0:00:00]} 55. Qg4+ {[%emt 0:00:00]} Qe4 {[%emt 0:00:00]} 56. Qxe4+ {[%emt 0:00:00]} Kxe4 {[%emt 0:00:00]} 57. Kxe6 {[%emt 0:00:00]} Kd4 {[%emt 0:13:36] Ke5+ Ke4+} 1/2-1/2

[Event "Lueneburg Open-B 2019"]
[Site "Lueneburg"]
[Date "2019.08.10"]
[Round "8.8"]
[White "Ahrens, Gunnar"]
[Black "Stolzenwald, Karl-Heinz"]
[Result "0-1"]
[ECO "A22"]
[WhiteElo "1764"]
[BlackElo "1600"]
[Annotator "NA"]
[PlyCount "86"]
[EventDate "2019.08.03"]
[EventType "swiss"]
[EventCountry "GER"]
[SourceTitle "playchess.com"]
[Source "ChessBase"]
[SourceQuality "1"]
[TimeControl "40/5400+30:1800+30"]

1. a3 {[%emt 0:00:00]} e5 {[%emt 0:00:00]} 2. c4 {[%emt 0:00:02]} Nf6 {[%emt 0:00:10]} 3. Nc3 {[%emt 0:00:07]} c6 {[%emt 0:00:26]} 4. e4 {[%emt 0:00:17]} Be7 {[%emt 0:00:18]} 5. Nf3 {[%emt 0:00:22]} d6 {[%emt 0:00:07]} 6. Be2 {[%emt 0:00:20]} Nbd7 {[%emt 0:00:43]} 7. O-O {[%emt 0:00:09]} O-O {[%emt 0:00:22]} 8. b4 {[%emt 0:00:21]} h6 {[%emt 0:00:32]} 9. Bb2 {[%emt 0:00:30]} Re8 {[%emt 0:00:15]} 10. Qc2 {[%emt 0:01:45]} Nf8 {[%emt 0:00:16]} 11. d4 {[%emt 0:02:07]} exd4 {[%emt 0:01:24]} 12. Nxd4 {[%emt 0:00:10]} Ng6 {[%emt 0:00:17]} 13. Rad1 {[%emt 0:01:34]} Bd7 {[%emt 0:00:59]} 14. Bc1 {[%emt 0:01:34]} Qc7 {[%emt 0:00:44]} 15. f4 {[%emt 0:02:00]} Rac8 {[%emt 0:01:25]} 16. Bh5 {[%emt 0:01:53]} Nxh5 {[%emt 0:00:57]} 17. f5 {[%emt 0:03:12]} Ne5 {[%emt 0:00:31]} 18. Nf3 {[%emt 0:00:32]} Nxf3+ {[%emt 0:00:44]} 19. Rxf3 {[%emt 0:00:03]} Nf6 {[%emt 0:00:13]} 20. Rg3 {[%emt 0:00:24]} Kh7 {[%emt 0:00:40]} 21. Qe2 {[%emt 0:00:19]} Bf8 {[%emt 0:02:41]} 22. Bf4 {[%emt 0:00:27]} Bxf5 {[%emt 0:02:21]} 23. c5 {[%emt 0:02:09]} Nxe4 {[%emt 0:00:40]} 24. Nxe4 {[%emt 0:00:23]} Rxe4 {[%emt 0:00:19]} 25. Qf3 {[%emt 0:00:34]} Rce8 {[%emt 0:01:30]} 26. Bxh6 {[%emt 0:02:13]} Bg6 {[%emt 0:01:07]} 27. Bf4 {[%emt 0:01:28]} Re1+ {[%emt 0:00:50]} 28. Rxe1 {[%emt 0:00:02]} Rxe1+ {[%emt 0:00:15]} 29. Kf2 {[%emt 0:00:01]} Re6 {[%emt 0:00:21]} 30. Rh3+ {[%emt 0:00:17]} Kg8 {[%emt 0:00:18]} 31. Qg3 {[%emt 0:00:27]} Qd7 {[%emt 0:00:35]} 32. Qh4 {[%emt 0:00:32]} f6 {[%emt 0:01:08]} 33. Qg4 {[%emt 0:00:40]} Kf7 {[%emt 0:00:55]} 34. Rg3 {[%emt 0:00:41]} f5 {[%emt 0:00:07]} 35. Qd1 {[%emt 0:00:43]} d5 {[%emt 0:00:35]} 36. h4 {[%emt 0:00:29]} Re4 {[%emt 0:00:29]} 37. Bg5 {[%emt 0:01:16]} Qe6 {[%emt 0:07:20]} 38. h5 {[%emt 0:00:59]} Bh7 {[%emt 0:00:13]} 39. Rh3 {[%emt 0:00:47]} Be7 {[%emt 0:02:22]} 40. Bxe7 {[%emt 0:02:43]} Qxe7 {[%emt 0:01:32]} 41. h6 {[%emt 0:30:26]} g6 {[%emt 0:30:22]} 42. Qd2 {[%emt 0:00:43]} Qe5 {[%emt 0:00:43]} 43. Rd3 {[%emt 0:01:30]} Qf4+ {[%emt 0:00:27]} 0-1

[Event "Lueneburg Open-B 2019"]
[Site "Lueneburg"]
[Date "2019.08.10"]
[Round "8.9"]
[White "Rempe, Janne"]
[Black "Buetow, Ingo"]
[Result "1/2-1/2"]
[ECO "D02"]
[WhiteElo "1594"]
[BlackElo "1747"]
[Annotator "NA"]
[PlyCount "20"]
[EventDate "2019.08.03"]
[EventType "swiss"]
[EventCountry "GER"]
[SourceTitle "playchess.com"]
[Source "ChessBase"]
[SourceQuality "1"]
[TimeControl "40/5400+30:1800+30"]

1. d4 {[%emt 0:00:00]} Nf6 {[%emt 0:00:00]} 2. Nf3 {[%emt 0:00:00]} d5 {[%emt 0:00:00]} 3. Bf4 {[%emt 0:00:00]} g6 {[%emt 0:00:00]} 4. h3 {[%emt 0:00:10]} Bg7 {[%emt 0:00:00]} 5. e3 {[%emt 0:00:10]} O-O {[%emt 0:00:21]} 6. c3 {[%emt 0:00:05]} c5 {[%emt 0:00:13]} 7. Nbd2 {[%emt 0:00:16]} cxd4 {[%emt 0:00:21]} 8. exd4 {[%emt 0:00:06]} Qb6 {[%emt 0:00:40]} 9. b3 {[%emt 0:00:46]} Nc6 {[%emt 0:00:41]} 10. Be2 {[%emt 0:00:45]} Bf5 {[%emt 0:00:43]} 1/2-1/2

[Event "Lueneburg Open-B 2019"]
[Site "Lueneburg"]
[Date "2019.08.10"]
[Round "8.10"]
[White "Kasipour Azbari, Seyed Arvin"]
[Black "Raedisch, Peter"]
[Result "1-0"]
[ECO "C28"]
[WhiteElo "1765"]
[BlackElo "1595"]
[Annotator "NA"]
[PlyCount "43"]
[EventDate "2019.08.03"]
[EventType "swiss"]
[EventCountry "GER"]
[SourceTitle "playchess.com"]
[Source "ChessBase"]
[SourceQuality "1"]
[TimeControl "40/5400+30:1800+30"]

1. e4 {[%emt 0:00:34]} e5 {[%emt 0:00:00]} 2. Nc3 {[%emt 0:00:02]} Nc6 {[%emt 0:00:02]} 3. Bc4 {[%emt 0:00:05]} Nf6 {[%emt 0:00:33]} 4. d3 {[%emt 0:00:06]} a6 {[%emt 0:00:30]} 5. f4 {[%emt 0:00:10]} d6 {[%emt 0:07:24]} 6. Nf3 {[%emt 0:01:44]} Na5 {[%emt 0:02:27]} 7. fxe5 {[%emt 0:01:59]} dxe5 {[%emt 0:06:06]} 8. Nxe5 {[%emt 0:04:11]} Nxc4 {[%emt 0:01:36]} 9. Nxc4 {[%emt 0:01:17]} Ng4 {[%emt 0:01:02]} 10. Qf3 {[%emt 0:10:56]} b5 {[%emt 0:07:48]} 11. Ne3 {[%emt 0:03:58]} h5 {[%emt 0:01:24]} 12. O-O {[%emt 0:07:30]} Be6 {[%emt 0:01:56]} 13. Nf5 {[%emt 0:15:12]} g6 {[%emt 0:02:37]} 14. Bf4 {[%emt 0:09:21]} gxf5 {[%emt 0:06:29]} 15. exf5 {[%emt 0:00:17]} Qd4+ {[%emt 0:02:27]} 16. Kh1 {[%emt 0:00:24]} Bc8 {[%emt 0:06:54]} 17. Qxa8 {[%emt 0:01:09]} Nf2+ {[%emt 0:00:05]} 18. Rxf2 {[%emt 0:00:08]} Qxf2 {[%emt 0:00:23]} 19. Qxc8+ {[%emt 0:00:08]} Ke7 {[%emt 0:00:09]} 20. Qxc7+ {[%emt 0:00:17]} Ke8 {[%emt 0:00:52]} 21. Qc8+ {[%emt 0:00:18]} Ke7 {[%emt 0:00:10]} 22. Nd5# {[%emt 0:41:14]} 1-0

[Event "Lueneburg Open-B 2019"]
[Site "Lueneburg"]
[Date "2019.08.10"]
[Round "8.11"]
[White "Mi, Gufeng"]
[Black "Krause, Holger"]
[Result "1-0"]
[ECO "E61"]
[WhiteElo "1564"]
[BlackElo "1639"]
[Annotator "NA"]
[PlyCount "99"]
[EventDate "2019.08.03"]
[EventType "swiss"]
[EventCountry "GER"]
[SourceTitle "playchess.com"]
[Source "ChessBase"]
[SourceQuality "1"]
[TimeControl "40/5400+30:1800+30"]

1. d4 {[%emt 0:00:05]} Nf6 {[%emt 0:00:00]} 2. Nf3 {[%emt 0:00:21]} d6 {[%emt 0:00:01]} 3. h3 {[%emt 0:00:09]} Nbd7 {[%emt 0:00:40]} 4. Bf4 {[%emt 0:00:12]} g6 {[%emt 0:00:53]} 5. e3 {[%emt 0:00:16]} Bg7 {[%emt 0:00:48]} 6. c4 {[%emt 0:00:24]} O-O {[%emt 0:01:23]} 7. Be2 {[%emt 0:00:08]} b6 {[%emt 0:01:26]} 8. Nc3 {[%emt 0:00:30]} Bb7 {[%emt 0:01:04]} 9. O-O {[%emt 0:00:23]} e6 {[%emt 0:02:30]} 10. Rc1 {[%emt 0:01:02]} Ne4 {[%emt 0:03:11]} 11. Nxe4 {[%emt 0:01:11]} Bxe4 {[%emt 0:00:07]} 12. Nd2 {[%emt 0:01:09]} Bb7 {[%emt 0:01:41]} 13. b4 {[%emt 0:00:41]} e5 {[%emt 0:04:35]} 14. Bh2 {[%emt 0:00:41]} exd4 {[%emt 0:01:55]} 15. exd4 {[%emt 0:00:13]} Bxd4 {[%emt 0:02:06]} 16. Nf3 {[%emt 0:00:17]} Bg7 {[%emt 0:01:14]} 17. Nd4 {[%emt 0:01:15]} Re8 {[%emt 0:04:05]} 18. Nf3 {[%emt 0:02:29]} Nf6 {[%emt 0:03:11]} 19. Ne1 {[%emt 0:03:12]} Qd7 {[%emt 0:01:47]} 20. Nc2 {[%emt 0:00:33]} Ne4 {[%emt 0:05:27]} 21. Qd3 {[%emt 0:05:34]} Nc3 {[%emt 0:03:55]} 22. Bg4 {[%emt 0:01:47]} f5 {[%emt 0:05:28]} 23. Bd1 {[%emt 0:01:51]} Re7 {[%emt 0:04:43]} 24. Ne3 {[%emt 0:00:52]} Nxd1 {[%emt 0:01:25]} 25. Rfxd1 {[%emt 0:00:18]} Rae8 {[%emt 0:02:36]} 26. Qa3 {[%emt 0:01:13]} a6 {[%emt 0:03:21]} 27. Qb3 {[%emt 0:02:33]} Kf8 {[%emt 0:03:18]} 28. c5 {[%emt 0:00:36]} Qe6 {[%emt 0:02:18]} 29. Qb1 {[%emt 0:03:22]} Be5 {[%emt 0:03:18]} 30. Bxe5 {[%emt 0:06:57]} dxe5 {[%emt 0:02:10]} 31. Qb2 {[%emt 0:01:09]} b5 {[%emt 0:03:36]} 32. Rc2 {[%emt 0:04:15]} Rd7 {[%emt 0:02:37]} 33. Rdc1 {[%emt 0:03:24]} Bc6 {[%emt 0:02:19]} 34. Qa3 {[%emt 0:02:44]} Be4 {[%emt 0:01:43]} 35. Rc3 {[%emt 0:03:19]} Red8 {[%emt 0:01:51]} 36. Re1 {[%emt 0:07:47]} Rd2 {[%emt 0:01:27]} 37. Qa5 {[%emt 0:02:45]} Rxa2 {[%emt 0:03:06]} 38. Qxc7 {[%emt 0:01:32]} Rd7 {[%emt 0:00:45]} 39. Qb8+ {[%emt 0:05:04]} Ke7 {[%emt 0:01:11]} 40. Qh8 {[%emt 0:03:36]} h5 {[%emt 0:03:24]} 41. Qg7+ {[%emt 0:32:53]} Kd8 {[%emt 0:31:18]} 42. Qf8+ {[%emt 0:04:14]} Kc7 {[%emt 0:01:56]} 43. c6 {[%emt 0:04:36]} Bxc6 {[%emt 0:09:05]} 44. Qc5 {[%emt 0:04:06]} Qd6 {[%emt 0:01:30]} 45. Qa7+ {[%emt 0:02:00]} Kd8 {[%emt 0:01:06]} 46. Qb6+ {[%emt 0:01:08]} Rc7 {[%emt 0:01:57]} 47. Rd1 {[%emt 0:01:39]} Rd2 {[%emt 0:01:27]} 48. Rxd2 {[%emt 0:00:30]} Qxd2 {[%emt 0:00:09]} 49. Rxc6 {[%emt 0:00:26]} Qd7 {[%emt 0:00:43]} 50. Rd6 {[%emt 0:05:18]} 1-0

[Event "Lueneburg Open-B 2019"]
[Site "Lueneburg"]
[Date "2019.08.10"]
[Round "8.12"]
[White "David, Martin"]
[Black "Thomas, Vincent"]
[Result "0-1"]
[ECO "C11"]
[WhiteElo "1494"]
[BlackElo "1603"]
[Annotator "NA"]
[PlyCount "38"]
[EventDate "2019.08.03"]
[EventType "swiss"]
[EventCountry "GER"]
[SourceTitle "playchess.com"]
[Source "ChessBase"]
[SourceQuality "1"]
[TimeControl "40/5400+30:1800+30"]

1. e4 {[%emt 0:00:00]} e6 {[%emt 0:00:30]} 2. d4 {[%emt 0:00:00]} d5 {[%emt 0:01:34]} 3. Nc3 {[%emt 0:00:00]} Nf6 {[%emt 0:01:37]} 4. e5 {[%emt 0:04:12]} Nfd7 {[%emt 0:02:24]} 5. Nf3 {[%emt 0:04:31]} c5 {[%emt 0:02:23]} 6. Ne2 {[%emt 0:03:25]} Nc6 {[%emt 0:02:43]} 7. c3 {[%emt 0:01:25]} Qb6 {[%emt 0:02:29]} 8. a3 {[%emt 0:04:50]} f6 {[%emt 0:03:20]} 9. Nf4 {[%emt 0:07:53]} fxe5 {[%emt 0:13:44]} 10. Nxe6 {[%emt 0:02:11]} exd4 {[%emt 0:00:16]} 11. cxd4 {[%emt 0:04:27]} Nde5 {[%emt 0:07:31]} 12. Nxg7+ {[%emt 0:09:28]} Bxg7 {[%emt 0:06:01]} 13. Nxe5 {[%emt 0:00:11]} O-O {[%emt 0:01:00]} 14. Nxc6 {[%emt 0:06:48]} bxc6 {[%emt 0:01:01]} 15. Bd3 {[%emt 0:00:35]} c4 {[%emt 0:05:18]} 16. Bc2 {[%emt 0:03:05]} Bxd4 {[%emt 0:04:55]} 17. Qh5 {[%emt 0:09:07]} Bxf2+ {[%emt 0:10:40]} 18. Kd1 {[%emt 0:00:16]} Qd4+ {[%emt 0:00:32]} 19. Bd2 {[%emt 0:00:01]} Bg4+ {[%emt 0:01:19]} 0-1